bitfinex/quotes_BTCUSD_20230405
["timestamp","ask_amount","ask_price","bid_price","bid_amount"]
[1680664880989,0.82730056,28480.0,28479.0,0.002]
[1680664881215,0.81430056,28480.0,28473.0,1.25399826]
[1680664881441,0.70371956,28480.0,28479.0,0.002]
[1680664881665,0.70371956,28480.0,28473.0,1.25399826]
[1680664881666,0.81461856,28480.0,28473.0,1.25399826]
[1680664881877,0.70371956,28480.0,28479.0,0.002]
[1680664882096,0.81479356,28480.0,28473.0,1.25399826]
[1680664882327,0.81479356,28480.0,28473.0,1.25799826]
[1680664882328,0.0815,28477.0,28473.0,1.25799826]
[1680664882556,0.09379,28477.0,28474.0,0.06385219]
[1680664882789,0.09379,28477.0,28474.0,0.09024329]
[1680664883017,0.0815,28477.0,28474.0,0.09024329]
[1680664883232,0.09379,28477.0,28474.0,0.09024329]
[1680664883455,0.09379,28477.0,28474.0,0.17422148]
[1680664883677,0.0815,28477.0,28474.0,0.17422148]
[1680664883915,0.0845,28477.0,28474.0,0.17422148]
[1680664884105,0.0845,28477.0,28474.0,0.14783038]
[1680664884106,0.0815,28477.0,28474.0,0.14783038]
[1680664884282,0.0845,28477.0,28474.0,0.14783038]
[1680664884499,0.47929914,28477.0,28474.0,0.14783038]
[1680664884698,0.47680914,28477.0,28474.0,0.14783038]
[1680664884901,0.036873,28476.0,28474.0,0.15183038]
[1680664885053,0.43769256,28476.0,28474.0,0.004]
[1680664885275,0.0821,28475.0,28474.0,0.004]
[1680664885927,0.0821,28475.0,28473.0,0.08397819]
[1680664886133,0.0815,28474.0,28473.0,0.08397819]
[1680664886351,0.0815,28474.0,28472.0,0.27581253]
[1680664887057,0.0915,28474.0,28473.0,0.001]
[1680664887275,0.0815,28474.0,28472.0,0.21372547]
[1680664887490,0.0845,28474.0,28472.0,0.21372547]
[1680664887701,0.0815,28474.0,28472.0,0.21372547]
[1680664887913,0.08141602,28474.0,28472.0,0.21354547]
[1680664888142,0.08141602,28474.0,28473.0,0.08397819]
[1680664888348,0.08141602,28474.0,28473.0,0.11007819]
[1680664888567,0.09370702,28474.0,28473.0,0.0261]
[1680664888776,0.09141602,28474.0,28473.0,0.0271]
[1680664889404,0.01,28474.0,28473.0,0.0271]
[1680664889820,0.01,28474.0,28473.0,0.11107819]
[1680664890038,0.01,28474.0,28473.0,0.19019865]
[1680664890261,0.01,28474.0,28473.0,0.17364065]
[1680664891526,0.01,28474.0,28473.0,0.18967865]
[1680664891957,0.01,28474.0,28473.0,0.31564593]
[1680664892602,0.01,28474.0,28473.0,0.33320593]
[1680664893477,0.01,28474.0,28473.0,0.68791649]
[1680664893905,0.01,28474.0,28473.0,0.6039383]
[1680664894394,0.01,28474.0,28473.0,0.68806996]
[1680664894600,0.01,28474.0,28473.0,0.6255075]
[1680664894810,0.01,28474.0,28473.0,0.59538223]
[1680664895540,0.01,28474.0,28473.0,0.67951202]
[1680664895954,0.01,28474.0,28473.0,0.59538223]
[1680664896155,0.01,28474.0,28473.0,0.679512]
[1680664896787,0.01,28474.0,28473.0,0.59538223]
[1680664896982,0.01,28474.0,28473.0,0.54137584]
[1680664897193,0.01,28474.0,28473.0,0.70933221]
[1680664897617,0.01,28474.0,28473.0,0.90857584]
[1680664897837,0.01,28474.0,28473.0,2.48495403]
[1680664898059,0.02372,28480.0,28474.0,0.016761]
[1680664898281,0.02372,28480.0,28477.0,0.015146]
[1680664898478,0.02372,28480.0,28478.0,0.016329]
[1680664898684,0.02372,28480.0,28478.0,0.41523298]
[1680664899073,0.02372,28480.0,28479.0,0.042474]
[1680664899285,0.34817176,28480.0,28479.0,0.042474]
[1680664899742,0.34917176,28480.0,28479.0,0.042474]
[1680664900176,0.02472,28480.0,28479.0,0.042474]
[1680664900376,0.02421,28480.0,28479.0,0.042474]
[1680664901000,0.02472,28480.0,28479.0,0.042474]
[1680664901205,0.02372,28480.0,28479.0,0.042474]
[1680664901411,0.02672,28480.0,28479.0,0.0264]
[1680664901620,0.02372,28480.0,28479.0,0.11047706]
[1680664901826,0.02472,28480.0,28479.0,0.12047706]
[1680664903072,0.02472,28480.0,28479.0,0.10309006]
[1680664903904,0.02472,28480.0,28479.0,0.11898006]
[1680664904323,0.02472,28480.0,28479.0,0.10309006]
[1680664904534,0.02472,28480.0,28479.0,0.47410362]
[1680664904741,0.02421,28480.0,28479.0,0.47410362]
[1680664907161,0.02472,28480.0,28479.0,0.47410362]
[1680664907582,0.02421,28480.0,28479.0,0.49165962]
[1680664908010,0.02421,28480.0,28479.0,0.48165962]
[1680664908220,0.02321,28480.0,28479.0,0.46410362]
[1680664908428,0.02421,28480.0,28479.0,0.47410362]
[1680664908615,0.02421,28480.0,28479.0,0.49525962]
[1680664908849,0.02421,28480.0,28479.0,0.47410362]
[1680664909069,0.02421,28480.0,28479.0,0.49165962]
[1680664909529,0.39355822,28480.0,28479.0,0.39111056]
[1680664909748,0.39406822,28480.0,28479.0,0.0364]
[1680664913127,0.39346974,28480.0,28479.0,0.0364]
[1680664913311,0.02412152,28480.0,28479.0,0.0364]
[1680664914955,0.36088047,28481.0,28479.0,0.0364]
[1680664916253,0.36088047,28481.0,28479.0,0.0264]
[1680664916464,0.36188047,28481.0,28479.0,0.0364]
[1680664917122,0.43588047,28481.0,28479.0,0.0364]
[1680664919456,0.074,28480.0,28479.0,0.0364]
[1680664920393,0.074,28480.0,28479.0,0.0264]
[1680664920800,0.075,28480.0,28479.0,0.0364]
[1680664923811,0.055,28480.0,28479.0,0.0364]
[1680664924772,0.001,28480.0,28479.0,0.13478492]
[1680664924981,0.001,28480.0,28479.0,0.15138392]
[1680664925400,0.001,28480.0,28479.0,0.50609448]
[1680664925637,0.001,28480.0,28479.0,0.87329448]
[1680664926922,0.001,28480.0,28479.0,1.97341448]
[1680664927137,0.001,28480.0,28479.0,1.97329448]
[1680664927341,0.001,28480.0,28479.0,1.97347448]
[1680664928601,0.001,28480.0,28479.0,1.97329448]
[1680664929515,0.001,28480.0,28479.0,1.97689448]
[1680664929954,0.001,28480.0,28479.0,1.95061448]
[1680664930820,0.001,28480.0,28479.0,2.07928556]
[1680664931085,0.001,28480.0,28479.0,2.56059075]
[1680664931293,0.001,28480.0,28479.0,2.63357115]
[1680664931497,0.001,28480.0,28479.0,2.56059075]
[1680664931696,0.001,28480.0,28479.0,2.65234436]
[1680664931926,0.001,28480.0,28479.0,2.56059075]
[1680664932125,0.001,28480.0,28479.0,2.65820012]
[1680664932590,0.50916919,28486.0,28482.0,1.4672]
[1680664932721,0.50967919,28486.0,28483.0,0.43188098]
[1680664932948,0.50967919,28486.0,28483.0,0.35471056]
[1680664932949,0.41122603,28484.0,28483.0,0.35471056]
[1680664933151,0.41122603,28484.0,28483.0,0.37162556]
[1680664933622,0.41122603,28484.0,28483.0,0.38762556]
[1680664933741,0.00051,28485.0,28483.0,0.37162556]
[1680664933973,0.45154847,28485.0,28484.0,0.016879]
[1680664934178,0.41334097,28484.0,28483.0,0.37071056]
[1680664934390,0.41334097,28484.0,28483.0,0.35483056]
[1680664934804,0.41334097,28484.0,28483.0,0.00012]
[1680664935004,0.48734097,28484.0,28482.0,1.10018]
[1680664935402,0.074,28483.0,28482.0,1.10018]
[1680664935612,0.074,28483.0,28482.0,1.11687]
[1680664936261,0.074,28483.0,28482.0,1.13287]
[1680664936468,0.074,28483.0,28482.0,1.11687]
[1680664936682,0.074,28483.0,28482.0,1.13287]
[1680664939870,0.074,28483.0,28482.0,1.11618]
[1680664940090,0.074,28483.0,28482.0,1.133162]
[1680664940300,0.074,28483.0,28482.0,1.132982]
[1680664940509,0.074,28483.0,28482.0,1.133162]
[1680664940717,0.074,28483.0,28482.0,1.11618]
[1680664940955,0.074,28483.0,28482.0,1.22365975]
[1680664941323,0.074,28483.0,28482.0,1.20670275]
[1680664941902,0.074,28483.0,28482.0,1.22215675]
[1680664942102,0.074,28483.0,28482.0,1.20670275]
[1680664942360,0.074,28483.0,28482.0,1.24077975]
[1680664943509,0.074,28483.0,28482.0,1.24059975]
[1680664943757,0.074,28483.0,28482.0,1.59531031]
[1680664943925,0.00051,28486.0,28482.0,1.59891031]
[1680664944140,0.5286994,28487.0,28483.0,0.09339058]
[1680664944353,0.5286994,28487.0,28483.0,0.09563658]
[1680664945011,0.5286994,28487.0,28484.0,0.37170956]
[1680664945232,0.5286994,28487.0,28485.0,0.015634]
[1680664945850,0.074,28487.0,28485.0,0.015634]
[1680664947612,0.076,28487.0,28485.0,0.015634]
[1680664948475,0.074,28487.0,28485.0,0.015634]
[1680664948683,0.074,28487.0,28486.0,0.08957011]
[1680664949149,0.074,28487.0,28486.0,0.10712211]
[1680664949355,0.074,28487.0,28486.0,0.08957011]
[1680664949606,0.47642007,28488.0,28486.0,0.08957011]
[1680664949826,0.47642007,28488.0,28487.0,0.016666]
[1680664950269,0.0739,28488.0,28486.0,0.08975011]
[1680664950481,0.0739,28488.0,28486.0,0.09157011]
[1680664950809,0.0739,28488.0,28486.0,0.08975011]
[1680664951022,0.0759,28488.0,28486.0,0.08975011]
[1680664951265,0.0739,28488.0,28486.0,0.08975011]
[1680664951509,0.0739,28488.0,28486.0,0.44646067]
[1680664951716,0.0739,28488.0,28487.0,0.016014]
[1680664953296,0.0759,28488.0,28487.0,0.016014]
[1680664953729,0.0759,28488.0,28486.0,0.44446067]
[1680664953953,0.0739,28488.0,28487.0,0.015718]
[1680664954171,0.0739,28488.0,28487.0,0.017718]
[1680664954590,0.0739,28488.0,28487.0,0.09152679]
[1680664954805,0.0739,28488.0,28486.0,0.35489056]
[1680664954806,0.0739,28488.0,28486.0,0.009]
[1680664955024,0.0739,28488.0,28485.0,1.14509569]
[1680664955250,0.0739,28488.0,28486.0,0.016492]
[1680664956128,0.42754698,28487.0,28486.0,0.016492]
[1680664956360,0.42754698,28487.0,28485.0,1.47877425]
[1680664956629,0.07441,28488.0,28486.0,0.015553]
[1680664956822,0.07441,28488.0,28486.0,0.024553]
[1680664956823,0.0739,28488.0,28486.0,0.024553]
[1680664957039,0.0739,28488.0,28487.0,0.016913]
[1680664957256,0.0739,28488.0,28486.0,0.02583942]
[1680664957690,0.0639,28488.0,28486.0,0.02583942]
[1680664957917,0.0639,28488.0,28486.0,0.03483942]
[1680664958999,0.0639,28488.0,28486.0,0.009]
[1680664959222,0.47221461,28488.0,28486.0,0.009]
[1680664959662,0.074,28487.0,28486.0,0.009]
[1680664960276,0.074,28487.0,28486.0,0.0191]
[1680664960634,0.074,28487.0,28486.0,0.0101]
[1680664960872,0.074,28487.0,28486.0,0.0191]
[1680664962409,0.069,28487.0,28486.0,0.0191]
[1680664965458,0.069,28487.0,28486.0,0.0416329]
[1680664966101,0.069,28487.0,28486.0,0.0567589]
[1680664966308,0.46446617,28489.0,28486.0,0.0416329]
[1680664967357,0.46446617,28489.0,28486.0,0.0326329]
[1680664967562,0.46446617,28489.0,28486.0,0.0416329]
[1680664969278,0.09772,28489.0,28487.0,0.02211241]
[1680664969468,0.09772,28489.0,28488.0,0.016078]
[1680664969469,0.09721,28489.0,28488.0,0.016078]
[1680664970575,0.09921,28489.0,28487.0,0.02211241]
[1680664970792,0.09921,28489.0,28488.0,0.015867]
[1680664972729,0.09721,28489.0,28488.0,0.009]
[1680664973941,0.09721,28489.0,28488.0,0.0198]
[1680664974972,0.51182,28489.0,28488.0,0.0198]
[1680664975184,0.141124,28489.0,28488.0,0.009]
[1680664975387,0.140614,28489.0,28488.0,0.009]
[1680664975597,0.5723485,28489.0,28488.0,0.009]
[1680664975815,0.5728585,28489.0,28488.0,0.009]
[1680664976084,0.59458661,28489.0,28488.0,0.009]
[1680664976989,0.59458661,28489.0,28485.0,1.1]
[1680664977221,0.40668261,28489.0,28488.0,0.002]
[1680664977442,0.59598861,28489.0,28488.0,0.002]
[1680664978388,0.56773656,28489.0,28484.0,0.00018]
[1680664978627,0.1476,28485.0,28482.0,0.00018]
[1680664978845,0.074,28483.0,28482.0,0.00018]
[1680664979271,0.074,28482.0,28481.0,1.1239183]
[1680664979495,0.074,28482.0,28481.0,1.12612488]
[1680664979890,0.074,28482.0,28481.0,1.12594488]
[1680664980309,0.074,28482.0,28481.0,1.12606488]
[1680664980514,0.074,28482.0,28481.0,1.1231994]
[1680664980730,0.074,28482.0,28481.0,1.10012]
[1680664981145,0.074,28482.0,28481.0,1.10018]
[1680664981787,0.074,28482.0,28481.0,1.12665171]
[1680664981996,0.074,28482.0,28481.0,1.2599939]
[1680664982165,0.074,28482.0,28481.0,1.2424389]
[1680664982417,0.07421,28485.0,28481.0,1.23358219]
[1680664982629,0.0737,28485.0,28484.0,1.1]
[1680664982797,0.0737,28485.0,28484.0,1.116269]
[1680664983004,0.0737,28485.0,28484.0,1.119869]
[1680664983235,0.0737,28485.0,28484.0,1.119989]
[1680664983515,0.0767,28485.0,28484.0,1.116389]
[1680664983851,0.0767,28485.0,28484.0,1.116449]
[1680664984880,0.0737,28485.0,28484.0,1.116449]
[1680664985126,0.0737,28485.0,28484.0,1.22561322]
[1680664986068,0.0737,28485.0,28484.0,1.22543322]
[1680664986289,0.0737,28485.0,28484.0,1.22561322]
[1680664986914,0.07362103,28485.0,28484.0,1.22543322]
[1680664989437,0.40714404,28486.0,28484.0,1.22543322]
[1680664989668,0.40714404,28486.0,28485.0,0.01571]
[1680664990913,0.07411,28486.0,28485.0,0.01571]
[1680664991132,0.0766,28486.0,28485.0,0.01571]
[1680664991320,0.0736,28486.0,28485.0,0.01571]
[1680664991724,0.0766,28486.0,28485.0,0.01571]
[1680664991958,0.0736,28486.0,28484.0,0.10716422]
[1680664992148,0.0766,28486.0,28484.0,0.10716422]
[1680664992368,0.003,28486.0,28485.0,0.70180772]
[1680664992594,0.003,28486.0,28485.0,1.06415094]
[1680664992799,0.003,28486.0,28485.0,0.58123983]
[1680664993003,0.003,28486.0,28485.0,0.75646229]
[1680664993208,0.003,28486.0,28485.0,0.40175173]
[1680664993412,0.39321275,28487.0,28486.0,0.4]
[1680664993653,0.39321275,28487.0,28486.0,0.55490365]
[1680664993852,0.39321275,28487.0,28486.0,0.54095165]
[1680664994057,0.46721275,28487.0,28486.0,0.52994965]
[1680664994471,0.46721275,28487.0,28486.0,0.55194965]
[1680664995134,0.46721275,28487.0,28486.0,0.56358265]
[1680664995435,0.074,28487.0,28486.0,0.58107965]
[1680664997403,0.074,28487.0,28486.0,0.66517811]
[1680664998237,0.074,28487.0,28486.0,0.26499811]
[1680664999165,0.074,28487.0,28486.0,0.13882846]
[1680664999373,0.51530822,28487.0,28486.0,0.13882846]
[1680664999578,0.51581822,28487.0,28486.0,0.12725046]
[1680665000196,0.51581822,28487.0,28486.0,0.13908546]
[1680665000415,0.51581822,28487.0,28486.0,0.12725046]
[1680665000634,0.51581822,28487.0,28486.0,0.13902046]
[1680665000635,0.07451,28487.0,28486.0,0.13902046]
[1680665000848,0.52750459,28489.0,28486.0,0.26519011]
[1680665001069,0.52750459,28489.0,28487.0,0.010765]
[1680665001322,0.52750459,28489.0,28487.0,0.028316]
[1680665001512,0.52750459,28489.0,28488.0,0.011092]
[1680665002194,0.17172,28489.0,28486.0,0.21386811]
[1680665002391,0.074,28487.0,28485.0,0.08409846]
[1680665002660,0.074,28486.0,28485.0,0.08409846]
[1680665004243,0.074,28486.0,28485.0,0.08709846]
[1680665004681,0.074,28486.0,28485.0,0.09832846]
[1680665005102,0.07451,28486.0,28485.0,0.08709846]
[1680665005342,0.07451,28486.0,28485.0,0.09846246]
[1680665005985,0.07451,28486.0,28485.0,0.08709846]
[1680665006436,0.07451,28486.0,28485.0,0.09786846]
[1680665006653,0.07451,28486.0,28485.0,0.08709846]
[1680665008756,0.069,28486.0,28485.0,0.08709846]
[1680665010671,0.069,28486.0,28485.0,0.08409846]
[1680665010882,0.073,28486.0,28485.0,0.08409846]
[1680665013688,0.073,28486.0,28485.0,0.09498346]
[1680665016967,0.073,28486.0,28485.0,0.08409846]
[1680665017585,0.073,28486.0,28485.0,0.09513846]
[1680665018354,0.073,28486.0,28485.0,0.08409846]
[1680665018962,0.073,28486.0,28485.0,0.09537246]
[1680665019203,0.073,28486.0,28485.0,0.08409846]
[1680665019595,0.073,28486.0,28485.0,0.20696946]
[1680665019793,0.073,28486.0,28485.0,0.21844546]
[1680665019932,0.073,28486.0,28485.0,0.13675746]
[1680665020138,0.073,28486.0,28485.0,0.10165146]
[1680665020540,0.073,28486.0,28485.0,0.08409846]
[1680665024414,0.073,28486.0,28484.0,0.12634965]
[1680665024415,0.60187008,28486.0,28484.0,0.08409846]
[1680665024645,0.1475,28485.0,28484.0,0.08409846]
[1680665024873,0.1475,28485.0,28483.0,0.21044811]
[1680665025093,0.1474,28484.0,28483.0,0.21044811]
[1680665025306,0.1474,28484.0,28483.0,0.0840948]
[1680665025967,0.1564,28484.0,28483.0,0.12716965]
[1680665026184,0.0828,28484.0,28483.0,0.12716965]
[1680665028049,0.0828,28484.0,28483.0,0.21129678]
[1680665029354,0.0828,28484.0,28483.0,0.08512713]
[1680665029589,0.1568,28484.0,28483.0,0.21129678]
[1680665029792,0.1568,28484.0,28483.0,0.08512713]
[1680665030197,0.1568,28484.0,28483.0,0.21129678]
[1680665030728,0.1568,28484.0,28483.0,0.08512713]
[1680665030957,0.1568,28484.0,28483.0,0.21129678]
[1680665031151,0.62140671,28484.0,28483.0,0.08512713]
[1680665031355,0.52430756,28484.0,28483.0,0.001]
[1680665031555,0.927564,28484.0,28483.0,0.001]
[1680665032171,0.928074,28484.0,28483.0,0.001]
[1680665033193,0.57181556,28484.0,28483.0,0.001]
[1680665033381,0.95289678,28484.0,28483.0,0.001]
[1680665037778,0.94060978,28484.0,28483.0,0.001]
[1680665038184,0.95289678,28484.0,28483.0,0.001]
[1680665038390,0.94060978,28484.0,28483.0,0.001]
[1680665039731,0.15731,28484.0,28483.0,0.001]
[1680665039947,0.0828,28484.0,28483.0,0.04063387]
[1680665040162,0.08273023,28484.0,28483.0,0.05186487]
[1680665040378,0.08273023,28484.0,28483.0,0.135992]
[1680665040618,0.08273023,28484.0,28483.0,0.136172]
[1680665040843,0.08273023,28484.0,28483.0,0.26234165]
[1680665041282,0.07373023,28484.0,28483.0,0.24378765]
[1680665041494,0.07373023,28484.0,28483.0,0.24678765]
[1680665041921,0.07373023,28484.0,28483.0,0.24818765]
[1680665043202,0.07373023,28484.0,28483.0,0.25178765]
[1680665043416,0.07330773,28484.0,28483.0,0.25160765]
[1680665043806,0.07330773,28484.0,28483.0,0.26916165]
[1680665044021,0.07330773,28484.0,28483.0,0.18503452]
[1680665044445,0.07330773,28484.0,28483.0,0.16388052]
[1680665044628,0.07330773,28484.0,28483.0,0.18503452]
[1680665044858,0.07330773,28484.0,28483.0,0.16748052]
[1680665046687,0.07330773,28484.0,28483.0,0.18503452]
[1680665047861,0.07330773,28484.0,28483.0,0.16295465]
[1680665048078,0.90827582,28484.0,28483.0,0.0044]
[1680665048313,0.94247582,28484.0,28483.0,0.0044]
[1680665048532,0.95476282,28484.0,28483.0,0.003]
[1680665049158,0.94247582,28484.0,28483.0,0.003]
[1680665049371,0.95476282,28484.0,28483.0,0.003]
[1680665049821,0.95476282,28484.0,28480.0,0.21040992]
[1680665049995,0.76946809,28484.0,28483.0,0.002]
[1680665050214,0.96487809,28484.0,28483.0,0.002]
[1680665050594,0.95259109,28484.0,28483.0,0.002]
[1680665051296,0.96487809,28484.0,28483.0,0.002]
[1680665052081,0.57040756,28484.0,28483.0,0.002]
[1680665052266,1.18671243,28484.0,28483.0,0.002]
[1680665052520,1.35331562,28484.0,28483.0,0.002]
[1680665052709,1.45280562,28484.0,28483.0,0.002]
[1680665052928,1.91920562,28484.0,28483.0,0.002]
[1680665053347,0.3672,28482.0,28476.0,0.08424027]
[1680665053566,0.074,28477.0,28476.0,0.08424027]
[1680665053773,0.57060737,28477.0,28476.0,0.08424027]
[1680665053976,0.42871056,28477.0,28476.0,0.08424027]
[1680665054186,0.42828801,28477.0,28476.0,0.08406027]
[1680665054828,0.07357745,28477.0,28476.0,0.08576027]
[1680665055667,0.08057745,28477.0,28476.0,0.09682027]
[1680665055901,0.08057745,28477.0,28476.0,0.11829993]
[1680665056121,0.08057745,28477.0,28476.0,0.24446958]
[1680665056325,0.08057745,28477.0,28476.0,0.11829993]
[1680665057275,0.007,28477.0,28476.0,0.11829993]
[1680665057693,0.007,28477.0,28476.0,0.24446958]
[1680665058638,0.007,28477.0,28476.0,0.11829993]
[1680665060871,0.00657745,28477.0,28476.0,0.24446958]
[1680665061740,0.00657745,28477.0,28476.0,0.11829993]
[1680665061949,0.00657745,28477.0,28476.0,0.24446958]
[1680665062367,0.00657745,28477.0,28476.0,0.11829993]
[1680665062805,0.00657745,28477.0,28476.0,0.24446958]
[1680665063139,0.00657745,28477.0,28476.0,0.11829993]
[1680665063353,0.00657745,28477.0,28476.0,0.10723993]
[1680665063947,0.00657745,28477.0,28476.0,0.11939393]
[1680665064156,0.00657745,28477.0,28476.0,0.10723993]
[1680665064365,0.00657745,28477.0,28476.0,0.08576027]
[1680665065041,0.00657745,28477.0,28476.0,0.0017]
[1680665065258,0.00657745,28477.0,28476.0,0.08576027]
[1680665068060,0.0061549,28477.0,28476.0,0.08576027]
[1680665069306,0.0061549,28477.0,28476.0,0.21192992]
[1680665069722,0.0061549,28477.0,28476.0,0.08576027]
[1680665069954,0.0061549,28477.0,28476.0,0.22319192]
[1680665070378,0.0061549,28477.0,28476.0,0.08576027]
[1680665070803,0.0061549,28477.0,28476.0,0.21192992]
[1680665071022,0.0061549,28477.0,28476.0,0.22352192]
[1680665071281,0.0061549,28477.0,28476.0,0.21192992]
[1680665072774,0.0061549,28477.0,28476.0,0.15003312]
[1680665072985,0.0061549,28477.0,28476.0,0.3312263]
[1680665073394,0.0061549,28477.0,28476.0,0.33110608]
[1680665074042,0.0061549,28477.0,28476.0,0.33110615]
[1680665074263,0.0061549,28477.0,28476.0,0.20505665]
[1680665074592,0.00573235,28477.0,28476.0,0.20505665]
[1680665080663,0.00573235,28477.0,28476.0,0.34536351]
[1680665080880,0.0053098,28477.0,28476.0,0.55569197]
[1680665083044,0.0053098,28477.0,28476.0,0.38746579]
[1680665083256,0.0053098,28477.0,28476.0,0.55558385]
[1680665084774,0.0053098,28477.0,28476.0,0.38746579]
[1680665084987,0.0053098,28477.0,28476.0,0.5555863]
[1680665085453,0.0053098,28477.0,28476.0,0.34525784]
[1680665086071,0.0053098,28477.0,28476.0,0.55458083]
[1680665086288,0.0053098,28477.0,28476.0,0.19686862]
[1680665086952,0.45766112,28482.0,28476.0,0.19686862]
[1680665087168,0.45766112,28482.0,28480.0,0.0840551]
[1680665087416,0.34438955,28481.0,28480.0,0.0840551]
[1680665087620,0.34489955,28481.0,28480.0,0.0958891]
[1680665088062,0.34489955,28481.0,28480.0,0.0998891]
[1680665088950,0.34489955,28481.0,28480.0,0.0840551]
[1680665089402,0.34489955,28481.0,28480.0,0.0955981]
[1680665089617,0.34489955,28481.0,28480.0,0.0840551]
[1680665089833,0.34589955,28481.0,28480.0,0.0880551]
[1680665090032,0.34589955,28481.0,28480.0,0.0991281]
[1680665090238,0.34489955,28481.0,28480.0,0.12608265]
[1680665090583,0.34589955,28481.0,28480.0,0.13008265]
[1680665090877,0.34589955,28481.0,28480.0,0.14186065]
[1680665091088,0.34589955,28481.0,28480.0,0.13008265]
[1680665091424,0.34589955,28481.0,28480.0,0.08808145]
[1680665091635,0.34589955,28481.0,28480.0,0.10598145]
[1680665091852,0.00151,28481.0,28480.0,0.2320641]
[1680665092085,0.001,28481.0,28480.0,0.2437111]
[1680665092302,0.001,28481.0,28480.0,0.15962965]
[1680665092497,0.41363315,28482.0,28480.0,0.32373986]
[1680665092747,0.41363315,28482.0,28481.0,0.09501415]
[1680665092950,0.41363315,28482.0,28481.0,0.08411815]
[1680665093626,0.41463315,28482.0,28481.0,0.08411815]
[1680665095086,0.00151,28482.0,28481.0,0.08411815]
[1680665095302,0.43261515,28482.0,28481.0,0.08411815]
[1680665095516,0.43312515,28482.0,28481.0,0.08411815]
[1680665095763,0.43312515,28482.0,28480.0,0.2281008]
[1680665095981,0.43212515,28482.0,28480.0,0.2102008]
[1680665096194,0.43212515,28482.0,28481.0,0.0172]
[1680665096413,0.52661315,28482.0,28481.0,0.0172]
[1680665096627,0.52132515,28482.0,28481.0,0.0172]
[1680665096839,0.51432515,28482.0,28481.0,0.0172]
[1680665097033,0.51532515,28482.0,28481.0,0.0172]
[1680665097347,0.51432515,28482.0,28481.0,0.0172]
[1680665097558,0.52132515,28482.0,28481.0,0.0172]
[1680665101991,0.08971,28482.0,28481.0,0.0172]
[1680665102200,0.0892,28482.0,28481.0,0.028592]
[1680665102411,0.0892,28482.0,28481.0,0.0172]
[1680665102628,0.0892,28482.0,28480.0,0.08411815]
[1680665102629,0.46716236,28482.0,28480.0,0.08411815]
[1680665102853,0.42182636,28482.0,28481.0,0.0223]
[1680665103077,0.48128456,28482.0,28481.0,0.0223]
[1680665103314,0.048024,28481.0,28479.0,0.08411815]
[1680665103498,0.53069956,28480.0,28479.0,0.08411815]
[1680665103922,0.53062144,28480.0,28479.0,0.08411815]
[1680665104914,0.53062144,28480.0,28479.0,0.08811815]
[1680665105127,0.53162144,28480.0,28479.0,0.11201815]
[1680665105344,0.53213144,28480.0,28479.0,0.0279]
[1680665105552,1.00472211,28480.0,28479.0,0.0279]
[1680665105761,1.00401411,28480.0,28479.0,0.0239]
[1680665105967,1.02401411,28480.0,28479.0,0.0239]
[1680665106184,0.97396411,28480.0,28478.0,0.2102008]
[1680665106387,0.08171497,28479.0,28478.0,0.2102008]
[1680665107205,0.08171497,28479.0,28478.0,0.2347008]
[1680665107412,0.08171497,28479.0,28478.0,0.10861815]
[1680665107627,0.08171497,28479.0,28478.0,0.2347008]
[1680665107851,0.09571497,28479.0,28478.0,0.10861815]
[1680665108053,0.09571497,28479.0,28478.0,0.2102008]
[1680665110313,0.09571497,28479.0,28478.0,0.12608265]
[1680665110532,0.83739903,28479.0,28478.0,0.12608265]
[1680665110758,0.45042553,28479.0,28478.0,0.12608265]
[1680665111199,0.09571497,28479.0,28478.0,0.12608265]
[1680665114304,0.09571497,28479.0,28478.0,0.29419286]
[1680665115807,0.09571497,28479.0,28478.0,0.12608265]
[1680665117001,0.44376454,28479.0,28478.0,0.12608265]
[1680665117204,0.51004957,28479.0,28478.0,0.29419286]
[1680665117409,0.51004957,28479.0,28478.0,0.12626265]
[1680665117589,0.51004957,28479.0,28478.0,0.12608265]
[1680665119654,0.51004957,28479.0,28478.0,0.29419286]
[1680665119900,0.51004957,28479.0,28478.0,0.29437286]
[1680665120093,0.51004957,28479.0,28478.0,0.12626265]
[1680665120314,0.51004957,28479.0,28478.0,0.12608265]
[1680665125962,0.014,28479.0,28478.0,0.12608265]
[1680665126182,0.014,28479.0,28478.0,0.3322961]
[1680665126397,0.014,28479.0,28478.0,0.3207111]
[1680665126892,0.014,28479.0,28478.0,0.15260089]
[1680665129449,0.088,28479.0,28478.0,0.15260089]
[1680665130107,0.08788644,28479.0,28478.0,0.15260089]
[1680665131303,0.08788644,28479.0,28478.0,0.24010089]
[1680665131563,0.42080809,28479.0,28478.0,0.21358265]
[1680665131732,0.46748809,28479.0,28478.0,0.21358265]
[1680665131928,0.08788644,28479.0,28478.0,0.21358265]
[1680665133408,0.08788644,28479.0,28478.0,0.0450852]
[1680665136512,0.08788644,28479.0,28478.0,0.12924161]
[1680665136725,0.01388644,28479.0,28478.0,0.24638041]
[1680665136937,0.01388644,28479.0,28478.0,0.45279012]
[1680665137153,0.01388644,28479.0,28478.0,0.55279012]
[1680665137603,0.074,28481.0,28478.0,0.45279012]
[1680665137823,0.074,28481.0,28480.0,0.08415602]
[1680665138017,0.074,28481.0,28480.0,0.029583]
[1680665138381,0.074,28481.0,28480.0,0.104483]
[1680665139188,0.074,28481.0,28480.0,0.12557897]
[1680665139611,0.00051,28482.0,28480.0,0.12557897]
[1680665139811,0.35086705,28483.0,28481.0,0.09467592]
[1680665140015,0.35086705,28483.0,28481.0,0.08415992]
[1680665140695,0.35086705,28483.0,28482.0,0.0775]
[1680665140903,0.35186705,28483.0,28482.0,0.0775]
[1680665142416,0.35086705,28483.0,28482.0,0.0775]
[1680665142627,0.35786705,28483.0,28482.0,0.0785]
[1680665143118,0.57146656,28483.0,28482.0,0.0785]
[1680665143331,0.92915373,28483.0,28482.0,0.001]
[1680665145950,0.57146656,28483.0,28482.0,0.001]
[1680665146382,0.95478119,28483.0,28482.0,0.001]
[1680665147387,1.07370681,28483.0,28482.0,0.001]
[1680665147600,0.69039218,28483.0,28482.0,0.001]
[1680665147805,1.06576312,28483.0,28482.0,0.001]